[Event "Titled Tuesday Blitz January 25 2022"]
[White "Koelle, Tobias"]
[Black "Gaehwiler, Gabriel"]
[WhiteFideId "16207378"]
[BlackFideId "1314530"]
[WhiteElo "2541"]
[BlackElo "2383"]
[Result "0-1"]
[Round "07"]
[TimeControl "180+1"]
[Date "2022.01.26"]
[WhiteClock "0:00:19"]
[BlackClock "0:00:08"]

1. d4 {[%clk 0:03:00]}  Nf6 {[%clk 0:02:59]} 2. c4 {[%clk 0:03:00]}  g6 {[%clk 0:02:59]} 3. f3 {[%clk 0:02:59]}  Bg7 {[%clk 0:02:59]} 4. e4 {[%clk 0:02:59]}  O-O {[%clk 0:03:00]} 5. Nc3 {[%clk 0:03:00]}  d6 {[%clk 0:03:00]} 6. Bg5 {[%clk 0:03:00]}  c5 {[%clk 0:02:59]} 7. d5 {[%clk 0:03:00]}  Qa5 {[%clk 0:02:59]} 8. Qd2 {[%clk 0:02:59]}  e6 {[%clk 0:02:56]} 9. Nge2 {[%clk 0:02:55]}  exd5 {[%clk 0:02:55]} 10. cxd5 {[%clk 0:02:54]}  b5 {[%clk 0:02:50]} 11. a4 {[%clk 0:02:51]}  b4 {[%clk 0:02:42]} 12. Nd1 {[%clk 0:02:51]}  Nbd7 {[%clk 0:02:28]} 13. Ne3 {[%clk 0:02:48]}  Ba6 {[%clk 0:02:28]} 14. Nc1 {[%clk 0:02:37]}  Rae8 {[%clk 0:02:21]} 15. Nb3 {[%clk 0:02:35]}  Qb6 {[%clk 0:02:15]} 16. Bxa6 {[%clk 0:02:06]}  Qxa6 {[%clk 0:02:15]} 17. Qe2 {[%clk 0:02:07]}  Qxe2+ {[%clk 0:01:42]} 18. Kxe2 {[%clk 0:02:08]}  Nxe4 {[%clk 0:01:43]} 19. fxe4 {[%clk 0:02:05]}  Rxe4 {[%clk 0:01:43]} 20. Kd3 {[%clk 0:01:48]}  f5 {[%clk 0:01:20]} 21. Nc4 {[%clk 0:01:38]}  Ne5+ {[%clk 0:00:54]} 22. Nxe5 {[%clk 0:01:37]}  Bxe5 {[%clk 0:00:55]} 23. Nd2 {[%clk 0:01:36]}  Rg4 {[%clk 0:00:53]} 24. Be3 {[%clk 0:01:34]}  f4 {[%clk 0:00:50]} 25. Bf2 {[%clk 0:01:29]}  Rxg2 {[%clk 0:00:50]} 26. Raf1 {[%clk 0:01:29]}  f3 {[%clk 0:00:49]} 27. Nc4 {[%clk 0:01:28]}  Bf4 {[%clk 0:00:43]} 28. Ke4 {[%clk 0:01:24]}  Bxh2 {[%clk 0:00:32]} 29. Ne3 {[%clk 0:01:19]}  Rf4+ {[%clk 0:00:20]} 30. Kd3 {[%clk 0:01:19]}  Rd4+ {[%clk 0:00:19]} 31. Kc2 {[%clk 0:01:18]}  b3+ {[%clk 0:00:13]} 32. Kxb3 {[%clk 0:01:11]}  Be5 {[%clk 0:00:13]} 33. Kc2 {[%clk 0:00:56]}  Rxa4 {[%clk 0:00:11]} 34. Rhg1 {[%clk 0:00:49]}  Rxg1 {[%clk 0:00:11]} 35. Bxg1 {[%clk 0:00:50]}  Bd4 {[%clk 0:00:05]} 36. Rxf3 {[%clk 0:00:49]}  Ra2 {[%clk 0:00:05]} 37. Kc1 {[%clk 0:00:34]}  Ra1+ {[%clk 0:00:05]} 38. Kc2 {[%clk 0:00:33]}  Rxg1 {[%clk 0:00:06]} 39. Nc4 {[%clk 0:00:34]}  Rg2+ {[%clk 0:00:06]} 40. Kb3 {[%clk 0:00:33]}  g5 {[%clk 0:00:07]} 41. Nxd6 {[%clk 0:00:33]}  Rxb2+ {[%clk 0:00:06]} 42. Kc4 {[%clk 0:00:34]}  Rb4+ {[%clk 0:00:06]} 43. Kd3 {[%clk 0:00:34]}  Rb3+ {[%clk 0:00:07]} 44. Ke4 {[%clk 0:00:35]}  Rxf3 {[%clk 0:00:08]} 45. Kxf3 {[%clk 0:00:36]}  h5 {[%clk 0:00:08]} 46. Nb7 {[%clk 0:00:35]}  Be5 {[%clk 0:00:06]} 47. d6 {[%clk 0:00:32]}  c4 {[%clk 0:00:04]} 48. d7 {[%clk 0:00:30]}  Bc7 {[%clk 0:00:04]} 49. d8=Q+ {[%clk 0:00:28]}  Bxd8 {[%clk 0:00:04]} 50. Nxd8 {[%clk 0:00:29]}  c3 {[%clk 0:00:05]} 51. Ke2 {[%clk 0:00:29]}  h4 {[%clk 0:00:05]} 52. Nc6 {[%clk 0:00:27]}  h3 {[%clk 0:00:05]} 53. Ne7+ {[%clk 0:00:27]}  Kf7 {[%clk 0:00:05]} 54. Nf5 {[%clk 0:00:28]}  Kf6 {[%clk 0:00:06]} 55. Ng3 {[%clk 0:00:28]}  Ke5 {[%clk 0:00:06]} 56. Kd3 {[%clk 0:00:28]}  Kf4 {[%clk 0:00:07]} 57. Nf1 {[%clk 0:00:26]}  Kf3 {[%clk 0:00:07]} 58. Kxc3 {[%clk 0:00:27]}  g4 {[%clk 0:00:07]} 59. Kd2 {[%clk 0:00:26]}  g3 {[%clk 0:00:08]} 60. Ke1 {[%clk 0:00:19]}  g2 {[%clk 0:00:08]} 61. Nd2+ {[%clk 0:00:19]}  Kg3 {[%clk 0:00:07]} 62. Ne4+ {[%clk 0:00:19]}  Kf4 {[%clk 0:00:08]} 63. Nd2 {[%clk 0:00:15]}  g1=Q+ {[%clk 0:00:08]} 64. Ke2 {[%clk 0:00:16]}  Qg2+ {[%clk 0:00:08]} 65. Kd3 {[%clk 0:00:17]}  h2 {[%clk 0:00:08]} 66. Nc4 {[%clk 0:00:17]}  Qe4+ {[%clk 0:00:08]} 67. Kc3 {[%clk 0:00:18]}  h1=Q {[%clk 0:00:08]} 68. Kb3 {[%clk 0:00:18]}  Qhb1+ {[%clk 0:00:08]} 69. Ka3 {[%clk 0:00:18]}  Qed3+ {[%clk 0:00:08]} 70. Ka4 {[%clk 0:00:18]}  Qdb3+ {[%clk 0:00:08]} 71. Ka5 {[%clk 0:00:19]}  Qb5# {[%clk 0:00:08]} 0-1


[Site "https://www.chess.com"]

[Event "Titled Tuesday Blitz January 25 2022"]
[White "Kravtsiv, Martyn"]
[Black "Punin, Andrii"]
[WhiteFideId "14113147"]
[BlackFideId "14112639"]
[WhiteElo "2694"]
[BlackElo "2357"]
[Result "1-0"]
[Round "07"]
[TimeControl "180+1"]
[Date "2022.01.26"]
[WhiteClock "0:00:10"]
[BlackClock "0:00:11"]

1. e4 {[%clk 0:03:00]}  c6 {[%clk 0:02:59]} 2. Nf3 {[%clk 0:03:00]}  d5 {[%clk 0:02:59]} 3. d3 {[%clk 0:03:00]}  Qc7 {[%clk 0:02:58]} 4. Nc3 {[%clk 0:02:59]}  dxe4 {[%clk 0:02:54]} 5. Nxe4 {[%clk 0:03:00]}  Bg4 {[%clk 0:02:53]} 6. h3 {[%clk 0:02:58]}  Bh5 {[%clk 0:02:51]} 7. Qe2 {[%clk 0:02:48]}  Nf6 {[%clk 0:02:44]} 8. Nxf6+ {[%clk 0:02:46]}  gxf6 {[%clk 0:02:45]} 9. Bd2 {[%clk 0:02:43]}  Nd7 {[%clk 0:02:44]} 10. O-O-O {[%clk 0:02:42]}  Ne5 {[%clk 0:02:38]} 11. g4 {[%clk 0:02:39]}  Nxf3 {[%clk 0:02:37]} 12. Qxf3 {[%clk 0:02:39]}  Bg6 {[%clk 0:02:37]} 13. h4 {[%clk 0:02:31]}  h5 {[%clk 0:02:36]} 14. Bh3 {[%clk 0:02:31]}  Bh6 {[%clk 0:02:00]} 15. Bxh6 {[%clk 0:02:26]}  Rxh6 {[%clk 0:01:58]} 16. Rde1 {[%clk 0:02:26]}  Qd6 {[%clk 0:01:50]} 17. g5 {[%clk 0:02:12]}  fxg5 {[%clk 0:01:47]} 18. hxg5 {[%clk 0:02:13]}  Rh8 {[%clk 0:01:46]} 19. Re3 {[%clk 0:02:12]}  Kf8 {[%clk 0:01:44]} 20. Rhe1 {[%clk 0:02:01]}  Re8 {[%clk 0:01:33]} 21. Re5 {[%clk 0:01:54]}  Kg7 {[%clk 0:01:30]} 22. Qe3 {[%clk 0:01:53]}  e6 {[%clk 0:01:08]} 23. f4 {[%clk 0:01:52]}  Ref8 {[%clk 0:01:04]} 24. a3 {[%clk 0:01:38]}  a6 {[%clk 0:01:02]} 25. Qb6 {[%clk 0:01:36]}  Rb8 {[%clk 0:00:57]} 26. Kb1 {[%clk 0:01:32]}  h4 {[%clk 0:00:57]} 27. Bxe6 {[%clk 0:01:19]}  fxe6 {[%clk 0:00:45]} 28. Rxe6 {[%clk 0:01:19]}  Qxf4 {[%clk 0:00:46]} 29. Re7+ {[%clk 0:00:40]}  Bf7 {[%clk 0:00:46]} 30. Qg1 {[%clk 0:00:38]}  Kg6 {[%clk 0:00:33]} 31. Rf1 {[%clk 0:00:32]}  Qg3 {[%clk 0:00:25]} 32. Qd4 {[%clk 0:00:28]}  Bd5 {[%clk 0:00:17]} 33. Rg1 {[%clk 0:00:23]}  Qf3 {[%clk 0:00:11]} 34. Qg7+ {[%clk 0:00:10]}  Kh5 {[%clk 0:00:11]} 35. g6 {[%clk 0:00:10]}  Rbg8 {[%clk 0:00:11]} 36. Qh7+ {[%clk 0:00:09]}  Rxh7 {[%clk 0:00:11]} 37. Rxh7# {[%clk 0:00:10]} 1-0


[Site "https://www.chess.com"]

[Event "Titled Tuesday Blitz January 25 2022"]
[White "Kucuksari, Kaan"]
[Black "Mustafayev, Farid"]
[WhiteFideId "6380166"]
[BlackFideId "13408771"]
[WhiteElo "2305"]
[BlackElo "2129"]
[Result "0-1"]
[Round "07"]
[TimeControl "180+1"]
[Date "2022.01.26"]
[WhiteClock "0:00:46"]
[BlackClock "0:01:18"]

1. d4 {[%clk 0:03:00]}  d5 {[%clk 0:02:59]} 2. c4 {[%clk 0:03:00]}  dxc4 {[%clk 0:02:59]} 3. Nf3 {[%clk 0:03:01]}  Nf6 {[%clk 0:02:59]} 4. e3 {[%clk 0:03:02]}  c5 {[%clk 0:02:56]} 5. Bxc4 {[%clk 0:03:02]}  e6 {[%clk 0:02:56]} 6. O-O {[%clk 0:03:02]}  a6 {[%clk 0:02:54]} 7. b3 {[%clk 0:03:03]}  Nc6 {[%clk 0:02:52]} 8. Bb2 {[%clk 0:03:02]}  cxd4 {[%clk 0:02:52]} 9. Nxd4 {[%clk 0:03:03]}  Bd7 {[%clk 0:02:48]} 10. Nd2 {[%clk 0:02:55]}  Be7 {[%clk 0:02:48]} 11. N2f3 {[%clk 0:02:55]}  O-O {[%clk 0:02:46]} 12. Nxc6 {[%clk 0:02:53]}  Bxc6 {[%clk 0:02:47]} 13. Ne5 {[%clk 0:02:53]}  Bd5 {[%clk 0:02:47]} 14. Rc1 {[%clk 0:02:43]}  Bxc4 {[%clk 0:02:40]} 15. Nxc4 {[%clk 0:02:44]}  Qxd1 {[%clk 0:02:36]} 16. Rfxd1 {[%clk 0:02:43]}  Rfd8 {[%clk 0:02:37]} 17. Bxf6 {[%clk 0:02:42]}  Bxf6 {[%clk 0:02:29]} 18. Nb6 {[%clk 0:02:28]}  Rxd1+ {[%clk 0:02:28]} 19. Rxd1 {[%clk 0:02:29]}  Rd8 {[%clk 0:02:29]} 20. Rd7 {[%clk 0:02:12]}  Rxd7 {[%clk 0:02:27]} 21. Nxd7 {[%clk 0:02:13]}  Be7 {[%clk 0:02:28]} 22. Kf1 {[%clk 0:02:08]}  f6 {[%clk 0:02:26]} 23. Ke2 {[%clk 0:02:08]}  Bd6 {[%clk 0:02:26]} 24. Kd3 {[%clk 0:02:07]}  Kf7 {[%clk 0:02:24]} 25. Nb6 {[%clk 0:02:06]}  h5 {[%clk 0:02:14]} 26. Ke4 {[%clk 0:01:57]}  g5 {[%clk 0:02:02]} 27. h3 {[%clk 0:01:48]}  Bc7 {[%clk 0:01:57]} 28. Nd7 {[%clk 0:01:38]}  b6 {[%clk 0:01:57]} 29. f4 {[%clk 0:01:28]}  gxf4 {[%clk 0:01:51]} 30. exf4 {[%clk 0:01:29]}  Ke7 {[%clk 0:01:52]} 31. Nxf6 {[%clk 0:01:22]}  Kxf6 {[%clk 0:01:52]} 32. g4 {[%clk 0:01:23]}  Kg6 {[%clk 0:01:31]} 33. a4 {[%clk 0:01:07]}  a5 {[%clk 0:01:25]} 34. Kf3 {[%clk 0:01:04]}  e5 {[%clk 0:01:22]} 35. fxe5 {[%clk 0:01:00]}  Bxe5 {[%clk 0:01:23]} 36. Ke4 {[%clk 0:01:01]}  Bd6 {[%clk 0:01:22]} 37. Kf3 {[%clk 0:00:45]}  Kg5 {[%clk 0:01:19]} 38. gxh5 {[%clk 0:00:35]}  Kxh5 {[%clk 0:01:19]} 39. Ke4 {[%clk 0:00:36]}  Kh4 {[%clk 0:01:18]} 40. Kd5 {[%clk 0:00:37]}  Bc5 {[%clk 0:01:18]} 41. Kc4 {[%clk 0:00:37]}  Kxh3 {[%clk 0:01:15]} 42. Kc3 {[%clk 0:00:35]}  Kg4 {[%clk 0:01:14]} 43. Kc2 {[%clk 0:00:36]}  Kf4 {[%clk 0:01:15]} 44. Kb1 {[%clk 0:00:37]}  Ke3 {[%clk 0:01:15]} 45. Ka2 {[%clk 0:00:38]}  Kd3 {[%clk 0:01:16]} 46. Kb2 {[%clk 0:00:38]}  Bb4 {[%clk 0:01:16]} 47. Ka2 {[%clk 0:00:39]}  Kc2 {[%clk 0:01:16]} 48. Ka1 {[%clk 0:00:39]}  Kxb3 {[%clk 0:01:17]} 49. Kb1 {[%clk 0:00:40]}  Kxa4 {[%clk 0:01:16]} 50. Ka2 {[%clk 0:00:41]}  Bc3 {[%clk 0:01:15]} 51. Kb1 {[%clk 0:00:41]}  Kb3 {[%clk 0:01:16]} 52. Kc1 {[%clk 0:00:42]}  a4 {[%clk 0:01:16]} 53. Kb1 {[%clk 0:00:43]}  a3 {[%clk 0:01:17]} 54. Kc1 {[%clk 0:00:44]}  a2 {[%clk 0:01:18]} 55. Kd1 {[%clk 0:00:45]}  a1=Q+ {[%clk 0:01:18]} 56. Ke2 {[%clk 0:00:45]}  Qe1+ {[%clk 0:01:19]} 57. Kd3 {[%clk 0:00:46]}  Qd2+ {[%clk 0:01:18]} 58. Ke4 {[%clk 0:00:47]}  Kc4 {[%clk 0:01:18]} 59. Kf3 {[%clk 0:00:48]}  Qe1 {[%clk 0:01:18]} 60. Kg2 {[%clk 0:00:48]}  Bd4 {[%clk 0:01:18]} 61. Kh3 {[%clk 0:00:48]}  Qg1 {[%clk 0:01:17]} 62. Kh4 {[%clk 0:00:47]}  Be3 {[%clk 0:01:17]} 63. Kh3 {[%clk 0:00:46]}  Bf4 {[%clk 0:01:18]} 0-1


[Site "https://www.chess.com"]

[Event "Titled Tuesday Blitz January 25 2022"]
[White "Mirzoev, Azer"]
[Black "Villegas, Pierre"]
[WhiteFideId "13400304"]
[BlackFideId "654183"]
[WhiteElo "2525"]
[BlackElo "2410"]
[Result "1-0"]
[Round "07"]
[TimeControl "180+1"]
[Date "2022.01.26"]
[WhiteClock "0:02:47"]
[BlackClock "0:01:57"]

1. c4 {[%clk 0:03:00]}  e6 {[%clk 0:02:59]} 2. Nf3 {[%clk 0:02:57]}  d5 {[%clk 0:02:59]} 3. e3 {[%clk 0:02:58]}  Nf6 {[%clk 0:02:59]} 4. b3 {[%clk 0:02:58]}  a6 {[%clk 0:02:58]} 5. Bb2 {[%clk 0:02:58]}  c5 {[%clk 0:02:56]} 6. cxd5 {[%clk 0:02:56]}  exd5 {[%clk 0:02:55]} 7. Be2 {[%clk 0:02:55]}  Nc6 {[%clk 0:02:54]} 8. O-O {[%clk 0:02:56]}  Bd6 {[%clk 0:02:52]} 9. d4 {[%clk 0:02:55]}  cxd4 {[%clk 0:02:52]} 10. Nxd4 {[%clk 0:02:55]}  O-O {[%clk 0:02:51]} 11. Nd2 {[%clk 0:02:53]}  Bc7 {[%clk 0:02:46]} 12. Nxc6 {[%clk 0:02:51]}  bxc6 {[%clk 0:02:45]} 13. Rc1 {[%clk 0:02:51]}  Qd6 {[%clk 0:02:42]} 14. Nf3 {[%clk 0:02:51]}  Bg4 {[%clk 0:02:39]} 15. Be5 {[%clk 0:02:51]}  Qd7 {[%clk 0:02:37]} 16. Bxc7 {[%clk 0:02:50]}  Qxc7 {[%clk 0:02:38]} 17. Qc2 {[%clk 0:02:50]}  Bxf3 {[%clk 0:02:28]} 18. Bxf3 {[%clk 0:02:50]}  Rfc8 {[%clk 0:02:28]} 19. Rfd1 {[%clk 0:02:49]}  Qd6 {[%clk 0:02:10]} 20. Qc5 {[%clk 0:02:47]}  Qxc5 {[%clk 0:01:56]} 21. Rxc5 {[%clk 0:02:48]}  a5 {[%clk 0:01:57]} 22. Rdc1 {[%clk 0:02:47]}  a4 {[%clk 0:01:57]} 23. b4 {[%clk 0:02:47]} 1-0


[Site "https://www.chess.com"]

[Event "Titled Tuesday Blitz January 25 2022"]
[White "Mitusov, Semen"]
[Black "Leiva, Gianmarco"]
[WhiteFideId "14151049"]
[BlackFideId "3804399"]
[WhiteElo "2246"]
[BlackElo "2328"]
[Result "0-1"]
[Round "07"]
[TimeControl "180+1"]
[Date "2022.01.26"]
[WhiteClock "0:00:23"]
[BlackClock "0:00:06"]

1. e4 {[%clk 0:03:00]}  c5 {[%clk 0:02:57]} 2. c3 {[%clk 0:03:00]}  Nf6 {[%clk 0:02:56]} 3. e5 {[%clk 0:03:00]}  Nd5 {[%clk 0:02:57]} 4. d4 {[%clk 0:03:00]}  cxd4 {[%clk 0:02:57]} 5. Nf3 {[%clk 0:03:00]}  d6 {[%clk 0:02:58]} 6. cxd4 {[%clk 0:03:00]}  Nc6 {[%clk 0:02:57]} 7. Bc4 {[%clk 0:03:00]}  Nb6 {[%clk 0:02:57]} 8. Bb3 {[%clk 0:03:00]}  dxe5 {[%clk 0:02:55]} 9. d5 {[%clk 0:03:00]}  Na5 {[%clk 0:02:55]} 10. Nc3 {[%clk 0:03:00]}  Nxb3 {[%clk 0:02:55]} 11. Qxb3 {[%clk 0:03:00]}  e6 {[%clk 0:02:56]} 12. dxe6 {[%clk 0:02:31]}  Bxe6 {[%clk 0:02:55]} 13. Qb5+ {[%clk 0:02:31]}  Nd7 {[%clk 0:02:21]} 14. Nxe5 {[%clk 0:02:25]}  a6 {[%clk 0:02:20]} 15. Qe2 {[%clk 0:02:24]}  Nxe5 {[%clk 0:02:17]} 16. Qxe5 {[%clk 0:02:25]}  Qd6 {[%clk 0:02:11]} 17. Bf4 {[%clk 0:02:18]}  Qxe5+ {[%clk 0:02:10]} 18. Bxe5 {[%clk 0:02:19]}  f6 {[%clk 0:02:10]} 19. Bf4 {[%clk 0:02:14]}  Kf7 {[%clk 0:01:59]} 20. O-O {[%clk 0:02:12]}  g5 {[%clk 0:01:58]} 21. Be3 {[%clk 0:02:08]}  Re8 {[%clk 0:01:56]} 22. Rfd1 {[%clk 0:02:04]}  Bg7 {[%clk 0:01:41]} 23. Ne4 {[%clk 0:02:01]}  Kg6 {[%clk 0:01:37]} 24. Nc5 {[%clk 0:01:43]}  Bc8 {[%clk 0:01:36]} 25. Rac1 {[%clk 0:01:42]}  f5 {[%clk 0:01:34]} 26. Nb3 {[%clk 0:01:36]}  Bxb2 {[%clk 0:01:31]} 27. Rd6+ {[%clk 0:01:31]}  Re6 {[%clk 0:01:28]} 28. Rcd1 {[%clk 0:01:20]}  f4 {[%clk 0:01:10]} 29. Bb6 {[%clk 0:01:06]}  Re8 {[%clk 0:01:03]} 30. h3 {[%clk 0:00:59]}  Rxd6 {[%clk 0:01:00]} 31. Rxd6+ {[%clk 0:00:58]}  Re6 {[%clk 0:01:01]} 32. Rd8 {[%clk 0:00:55]}  Rxb6 {[%clk 0:00:33]} 33. Rxc8 {[%clk 0:00:54]}  Be5 {[%clk 0:00:30]} 34. Re8 {[%clk 0:00:51]}  Kf5 {[%clk 0:00:26]} 35. Rf8+ {[%clk 0:00:49]}  Ke6 {[%clk 0:00:22]} 36. Re8+ {[%clk 0:00:47]}  Kd5 {[%clk 0:00:22]} 37. Rd8+ {[%clk 0:00:45]}  Kc4 {[%clk 0:00:18]} 38. Rc8+ {[%clk 0:00:45]}  Kb4 {[%clk 0:00:17]} 39. Re8 {[%clk 0:00:43]}  Bb2 {[%clk 0:00:14]} 40. Re2 {[%clk 0:00:35]}  Ka3 {[%clk 0:00:13]} 41. Nc5 {[%clk 0:00:33]}  Kxa2 {[%clk 0:00:12]} 42. Na4 {[%clk 0:00:33]}  Rb4 {[%clk 0:00:12]} 43. Nc3+ {[%clk 0:00:33]}  Kb3 {[%clk 0:00:12]} 44. Ne4 {[%clk 0:00:33]}  Rxe4 {[%clk 0:00:07]} 45. Rxe4 {[%clk 0:00:32]}  b5 {[%clk 0:00:06]} 46. Kf1 {[%clk 0:00:20]}  a5 {[%clk 0:00:06]} 47. Ke2 {[%clk 0:00:20]}  a4 {[%clk 0:00:07]} 48. Kd3 {[%clk 0:00:19]}  a3 {[%clk 0:00:07]} 49. h4 {[%clk 0:00:18]}  h6 {[%clk 0:00:06]} 50. hxg5 {[%clk 0:00:16]}  hxg5 {[%clk 0:00:07]} 51. Re1 {[%clk 0:00:16]}  a2 {[%clk 0:00:07]} 52. Ke4 {[%clk 0:00:16]}  a1=Q {[%clk 0:00:07]} 53. Rxa1 {[%clk 0:00:17]}  Bxa1 {[%clk 0:00:08]} 54. Kf5 {[%clk 0:00:17]}  Kc2 {[%clk 0:00:05]} 55. Kxg5 {[%clk 0:00:17]}  b4 {[%clk 0:00:06]} 56. Kxf4 {[%clk 0:00:18]}  b3 {[%clk 0:00:07]} 57. Kg4 {[%clk 0:00:19]}  b2 {[%clk 0:00:08]} 58. f4 {[%clk 0:00:19]}  b1=Q {[%clk 0:00:09]} 59. f5 {[%clk 0:00:20]}  Qf1 {[%clk 0:00:08]} 60. Kg5 {[%clk 0:00:21]}  Qxg2+ {[%clk 0:00:08]} 61. Kh6 {[%clk 0:00:22]}  Bf6 {[%clk 0:00:06]} 62. Kh5 {[%clk 0:00:23]}  Qg5# {[%clk 0:00:06]} 0-1


[Site "https://www.chess.com"]

[Event "Titled Tuesday Blitz January 25 2022"]
[White "Nazaretyan, Tigran"]
[Black "Wagner, Dennis"]
[WhiteFideId "24162345"]
[BlackFideId "24650684"]
[WhiteElo "2192"]
[BlackElo "2355"]
[Result "1-0"]
[Round "07"]
[TimeControl "180+1"]
[Date "2022.01.26"]
[WhiteClock "0:00:32"]
[BlackClock "0:00:02"]

1. d4 {[%clk 0:03:00]}  Nf6 {[%clk 0:02:56]} 2. c4 {[%clk 0:03:00]}  e6 {[%clk 0:02:53]} 3. Nf3 {[%clk 0:03:00]}  d5 {[%clk 0:02:53]} 4. Nc3 {[%clk 0:03:00]}  Be7 {[%clk 0:02:49]} 5. Bf4 {[%clk 0:02:59]}  O-O {[%clk 0:02:48]} 6. e3 {[%clk 0:02:59]}  c5 {[%clk 0:02:48]} 7. dxc5 {[%clk 0:02:59]}  Bxc5 {[%clk 0:02:47]} 8. a3 {[%clk 0:02:59]}  Nc6 {[%clk 0:02:46]} 9. cxd5 {[%clk 0:02:59]}  Nxd5 {[%clk 0:02:45]} 10. Nxd5 {[%clk 0:02:59]}  exd5 {[%clk 0:02:45]} 11. Bd3 {[%clk 0:02:58]}  Qf6 {[%clk 0:02:17]} 12. Qc2 {[%clk 0:02:43]}  Bb6 {[%clk 0:01:19]} 13. Bxh7+ {[%clk 0:02:34]}  Kh8 {[%clk 0:01:18]} 14. Bg5 {[%clk 0:02:25]}  Ba5+ {[%clk 0:01:12]} 15. Ke2 {[%clk 0:02:17]}  Qe6 {[%clk 0:01:04]} 16. Bd3 {[%clk 0:02:04]}  Re8 {[%clk 0:00:55]} 17. Rhd1 {[%clk 0:02:02]}  d4 {[%clk 0:00:35]} 18. Kf1 {[%clk 0:01:59]}  dxe3 {[%clk 0:00:32]} 19. Bxe3 {[%clk 0:01:58]}  Ne5 {[%clk 0:00:22]} 20. Ng5 {[%clk 0:01:48]}  Qf6 {[%clk 0:00:15]} 21. Bb5 {[%clk 0:01:47]}  Bf5 {[%clk 0:00:14]} 22. Qe2 {[%clk 0:01:46]}  Red8 {[%clk 0:00:10]} 23. Qh5+ {[%clk 0:01:45]}  Kg8 {[%clk 0:00:09]} 24. b4 {[%clk 0:01:24]}  Ng4 {[%clk 0:00:10]} 25. Kg1 {[%clk 0:01:09]}  Nxe3 {[%clk 0:00:08]} 26. fxe3 {[%clk 0:01:09]}  Bb6 {[%clk 0:00:09]} 27. Re1 {[%clk 0:01:00]}  Bxe3+ {[%clk 0:00:09]} 28. Rxe3 {[%clk 0:00:56]}  Qxa1+ {[%clk 0:00:10]} 29. Kf2 {[%clk 0:00:56]}  Bg6 {[%clk 0:00:10]} 30. Qh4 {[%clk 0:00:53]}  Rd2+ {[%clk 0:00:09]} 31. Be2 {[%clk 0:00:52]}  Rad8 {[%clk 0:00:08]} 32. Nf3 {[%clk 0:00:47]}  Qb2 {[%clk 0:00:08]} 33. Nxd2 {[%clk 0:00:47]}  Qxd2 {[%clk 0:00:07]} 34. Qf4 {[%clk 0:00:46]}  Qd7 {[%clk 0:00:05]} 35. Bg4 {[%clk 0:00:45]}  Qd2+ {[%clk 0:00:05]} 36. Be2 {[%clk 0:00:44]}  Qb2 {[%clk 0:00:05]} 37. h4 {[%clk 0:00:43]}  Rd4 {[%clk 0:00:04]} 38. Qb8+ {[%clk 0:00:42]}  Kh7 {[%clk 0:00:04]} 39. h5 {[%clk 0:00:43]}  Bd3 {[%clk 0:00:04]} 40. Qe5 {[%clk 0:00:36]}  Bxe2 {[%clk 0:00:04]} 41. Rxe2 {[%clk 0:00:34]}  Qc3 {[%clk 0:00:04]} 42. Qf5+ {[%clk 0:00:32]}  Kh6 {[%clk 0:00:04]} 43. Re6+ {[%clk 0:00:31]}  g6 {[%clk 0:00:03]} 44. Rxg6+ {[%clk 0:00:31]}  Kh7 {[%clk 0:00:02]} 45. Qxf7+ {[%clk 0:00:31]}  Kh8 {[%clk 0:00:02]} 46. Rg8# {[%clk 0:00:32]} 1-0


[Site "https://www.chess.com"]

[Event "Titled Tuesday Blitz January 25 2022"]
[White "Nesterov, Arseniy"]
[Black "Atakishiyev, Elmar"]
[WhiteFideId "24198455"]
[BlackFideId "13410547"]
[WhiteElo "2489"]
[BlackElo "2087"]
[Result "1-0"]
[Round "07"]
[TimeControl "180+1"]
[Date "2022.01.26"]
[WhiteClock "0:00:04"]
[BlackClock "0:00:02"]

1. d4 {[%clk 0:02:27]}  Nf6 {[%clk 0:02:59]} 2. c4 {[%clk 0:02:28]}  e6 {[%clk 0:02:59]} 3. Nf3 {[%clk 0:02:27]}  d5 {[%clk 0:02:59]} 4. Nc3 {[%clk 0:02:28]}  Bb4 {[%clk 0:02:59]} 5. Qb3 {[%clk 0:02:28]}  Nc6 {[%clk 0:02:58]} 6. Bg5 {[%clk 0:02:26]}  O-O {[%clk 0:02:47]} 7. e3 {[%clk 0:02:26]}  h6 {[%clk 0:02:41]} 8. Bxf6 {[%clk 0:02:26]}  Qxf6 {[%clk 0:02:39]} 9. cxd5 {[%clk 0:02:26]}  exd5 {[%clk 0:02:38]} 10. Qxd5 {[%clk 0:02:25]}  Qg6 {[%clk 0:02:12]} 11. Qb3 {[%clk 0:02:05]}  Re8 {[%clk 0:01:45]} 12. d5 {[%clk 0:01:50]}  Bxc3+ {[%clk 0:01:43]} 13. Qxc3 {[%clk 0:01:51]}  Ne7 {[%clk 0:01:41]} 14. Rd1 {[%clk 0:01:28]}  Bg4 {[%clk 0:01:05]} 15. Ne5 {[%clk 0:01:25]}  Qh5 {[%clk 0:01:01]} 16. Nxg4 {[%clk 0:01:01]}  Qxg4 {[%clk 0:01:02]} 17. Rd4 {[%clk 0:00:59]}  Qg5 {[%clk 0:00:55]} 18. h4 {[%clk 0:00:46]}  Qe5 {[%clk 0:00:44]} 19. Bc4 {[%clk 0:00:43]}  Nf5 {[%clk 0:00:44]} 20. Rd3 {[%clk 0:00:40]}  Qe4 {[%clk 0:00:44]} 21. f3 {[%clk 0:00:23]}  Qf4 {[%clk 0:00:37]} 22. e4 {[%clk 0:00:13]}  Qg3+ {[%clk 0:00:32]} 23. Kf1 {[%clk 0:00:14]}  Nxh4 {[%clk 0:00:32]} 24. Qd2 {[%clk 0:00:14]}  Ng6 {[%clk 0:00:29]} 25. Rh3 {[%clk 0:00:13]}  Qe5 {[%clk 0:00:29]} 26. g3 {[%clk 0:00:10]}  a6 {[%clk 0:00:25]} 27. Bb3 {[%clk 0:00:11]}  a5 {[%clk 0:00:18]} 28. a3 {[%clk 0:00:10]}  a4 {[%clk 0:00:18]} 29. Ba2 {[%clk 0:00:10]}  Ra6 {[%clk 0:00:19]} 30. Rd4 {[%clk 0:00:09]}  Rb6 {[%clk 0:00:18]} 31. f4 {[%clk 0:00:06]}  Qe7 {[%clk 0:00:17]} 32. e5 {[%clk 0:00:05]}  Qc5 {[%clk 0:00:16]} 33. Kg2 {[%clk 0:00:05]}  Ne7 {[%clk 0:00:16]} 34. g4 {[%clk 0:00:04]}  Ng6 {[%clk 0:00:14]} 35. Rc3 {[%clk 0:00:04]}  Qe7 {[%clk 0:00:13]} 36. Rf3 {[%clk 0:00:02]}  Nh4+ {[%clk 0:00:13]} 37. Kg3 {[%clk 0:00:03]}  Nxf3 {[%clk 0:00:13]} 38. Kxf3 {[%clk 0:00:04]}  Qh4 {[%clk 0:00:14]} 39. Rd3 {[%clk 0:00:03]}  Qh3+ {[%clk 0:00:13]} 40. Kf2 {[%clk 0:00:03]}  Qxg4 {[%clk 0:00:13]} 41. d6 {[%clk 0:00:03]}  cxd6 {[%clk 0:00:12]} 42. exd6 {[%clk 0:00:03]}  Qh4+ {[%clk 0:00:10]} 43. Kf3 {[%clk 0:00:03]}  Qh1+ {[%clk 0:00:10]} 44. Kg3 {[%clk 0:00:02]}  Qg1+ {[%clk 0:00:07]} 45. Kf3 {[%clk 0:00:02]}  Re1 {[%clk 0:00:05]} 46. d7 {[%clk 0:00:02]}  Rf1+ {[%clk 0:00:03]} 47. Ke4 {[%clk 0:00:02]}  Qh1+ {[%clk 0:00:04]} 48. Kd4 {[%clk 0:00:01]}  Rd6+ {[%clk 0:00:04]} 49. Kc5 {[%clk 0:00:01]}  Qc6+ {[%clk 0:00:04]} 50. Kb4 {[%clk 0:00:02]}  Qb6+ {[%clk 0:00:02]} 51. Kc3 {[%clk 0:00:02]}  Qc5+ {[%clk 0:00:03]} 52. Bc4 {[%clk 0:00:03]}  Rxd3+ {[%clk 0:00:02]} 53. Qxd3 {[%clk 0:00:04]}  Rc1+ {[%clk 0:00:02]} 54. Kd2 {[%clk 0:00:04]} 1-0


[Site "https://www.chess.com"]